[Event "Titled Tuesday Blitz June 8 2021"]
[White "Tabatabaei, M. Amin"]
[Black "Borsuk, Konstantin"]
[WhiteFideId "12521213"]
[BlackFideId "14113406"]
[WhiteElo "2555"]
[BlackElo "2363"]
[Result "1/2-1/2"]
[Round "03"]
[TimeControl "180+1"]
[Date "2021.06.08"]
[WhiteClock "0:00:40"]
[BlackClock "0:00:02"]

1. d4 {[%clk 0:03:00]}  Nf6 {[%clk 0:02:58]} 2. Nf3 {[%clk 0:03:01]}  b6 {[%clk 0:02:56]} 3. Bf4 {[%clk 0:03:01]}  Bb7 {[%clk 0:02:56]} 4. e3 {[%clk 0:03:01]}  e6 {[%clk 0:02:56]} 5. h3 {[%clk 0:03:02]}  d6 {[%clk 0:02:56]} 6. a4 {[%clk 0:03:02]}  a5 {[%clk 0:02:52]} 7. Na3 {[%clk 0:02:58]}  Be7 {[%clk 0:02:51]} 8. Bd3 {[%clk 0:02:54]}  Nbd7 {[%clk 0:02:50]} 9. O-O {[%clk 0:02:53]}  h6 {[%clk 0:02:50]} 10. Qe2 {[%clk 0:02:52]}  g5 {[%clk 0:02:49]} 11. Bg3 {[%clk 0:02:51]}  Ne4 {[%clk 0:02:43]} 12. Bh2 {[%clk 0:02:44]}  h5 {[%clk 0:02:40]} 13. Bxe4 {[%clk 0:02:37]}  Bxe4 {[%clk 0:02:40]} 14. Nd2 {[%clk 0:02:38]}  Bc6 {[%clk 0:02:29]} 15. e4 {[%clk 0:02:37]}  Bxa4 {[%clk 0:02:14]} 16. Qc4 {[%clk 0:02:23]}  b5 {[%clk 0:02:03]} 17. Nxb5 {[%clk 0:02:23]}  Bxb5 {[%clk 0:02:03]} 18. Qxb5 {[%clk 0:02:24]}  g4 {[%clk 0:01:59]} 19. hxg4 {[%clk 0:02:13]}  hxg4 {[%clk 0:01:59]} 20. Rxa5 {[%clk 0:02:05]}  Rb8 {[%clk 0:01:50]} 21. Qc6 {[%clk 0:02:03]}  Bg5 {[%clk 0:01:23]} 22. Nc4 {[%clk 0:01:59]}  Rxh2 {[%clk 0:01:17]} 23. Kxh2 {[%clk 0:02:00]}  Bf4+ {[%clk 0:01:16]} 24. Kg1 {[%clk 0:01:45]}  Qh4 {[%clk 0:01:11]} 25. Rfa1 {[%clk 0:01:44]}  Qh2+ {[%clk 0:00:31]} 26. Kf1 {[%clk 0:01:44]}  Qh1+ {[%clk 0:00:28]} 27. Ke2 {[%clk 0:01:27]}  Qxg2 {[%clk 0:00:25]} 28. R5a3 {[%clk 0:01:28]}  d5 {[%clk 0:00:16]} 29. exd5 {[%clk 0:01:25]}  Qe4+ {[%clk 0:00:16]} 30. Ne3 {[%clk 0:01:18]}  Qf3+ {[%clk 0:00:14]} 31. Kd3 {[%clk 0:01:16]}  Qxf2 {[%clk 0:00:13]} 32. Kc4 {[%clk 0:00:48]}  Bxe3 {[%clk 0:00:06]} 33. dxe6 {[%clk 0:00:47]}  Qxc2+ {[%clk 0:00:02]} 34. Rc3 {[%clk 0:00:47]}  Qe2+ {[%clk 0:00:02]} 35. Rd3 {[%clk 0:00:48]}  Qc2+ {[%clk 0:00:02]} 36. Rc3 {[%clk 0:00:43]}  Qe2+ {[%clk 0:00:02]} 37. Rd3 {[%clk 0:00:42]}  Qc2+ {[%clk 0:00:02]} 38. Rc3 {[%clk 0:00:40]} 1/2-1/2


[Site "https://www.chess.com"]

[Event "Titled Tuesday Blitz June 8 2021"]
[White "Vokhidov, Shamsiddin"]
[Black "Aradhya, Garg"]
[WhiteFideId "14204223"]
[BlackFideId "25006746"]
[WhiteElo "2572"]
[BlackElo "2146"]
[Result "1/2-1/2"]
[Round "03"]
[TimeControl "180+1"]
[Date "2021.06.08"]
[WhiteClock "0:01:08"]
[BlackClock "0:00:08"]

1. e4 {[%clk 0:03:00]}  e5 {[%clk 0:02:59]} 2. Nf3 {[%clk 0:03:00]}  Nc6 {[%clk 0:02:59]} 3. Bc4 {[%clk 0:03:00]}  Nf6 {[%clk 0:02:59]} 4. d3 {[%clk 0:03:01]}  Bc5 {[%clk 0:02:58]} 5. c3 {[%clk 0:03:01]}  O-O {[%clk 0:02:58]} 6. Nbd2 {[%clk 0:03:01]}  a5 {[%clk 0:02:55]} 7. O-O {[%clk 0:02:58]}  d6 {[%clk 0:02:54]} 8. Re1 {[%clk 0:02:58]}  Ng4 {[%clk 0:02:33]} 9. Re2 {[%clk 0:02:57]}  Kh8 {[%clk 0:02:33]} 10. h3 {[%clk 0:02:55]}  f5 {[%clk 0:02:16]} 11. exf5 {[%clk 0:02:54]}  Nxf2 {[%clk 0:02:05]} 12. Rxf2 {[%clk 0:02:53]}  Bxf2+ {[%clk 0:02:05]} 13. Kxf2 {[%clk 0:02:54]}  d5 {[%clk 0:02:00]} 14. Bb5 {[%clk 0:02:52]}  Bxf5 {[%clk 0:02:00]} 15. Kg1 {[%clk 0:02:47]}  Qd6 {[%clk 0:01:52]} 16. Bxc6 {[%clk 0:02:37]}  bxc6 {[%clk 0:01:52]} 17. Nf1 {[%clk 0:02:36]}  Bxd3 {[%clk 0:01:51]} 18. Qxd3 {[%clk 0:02:28]}  e4 {[%clk 0:01:51]} 19. Qe2 {[%clk 0:02:26]}  exf3 {[%clk 0:01:48]} 20. gxf3 {[%clk 0:02:27]}  Rae8 {[%clk 0:01:14]} 21. Be3 {[%clk 0:02:25]}  Rf6 {[%clk 0:01:07]} 22. Re1 {[%clk 0:02:22]}  c5 {[%clk 0:00:36]} 23. Qf2 {[%clk 0:02:18]}  Rg6+ {[%clk 0:00:18]} 24. Kh1 {[%clk 0:02:16]}  Qd7 {[%clk 0:00:18]} 25. Kh2 {[%clk 0:02:07]}  d4 {[%clk 0:00:18]} 26. cxd4 {[%clk 0:02:06]}  cxd4 {[%clk 0:00:18]} 27. Bf4 {[%clk 0:02:05]}  Rge6 {[%clk 0:00:15]} 28. Rxe6 {[%clk 0:02:02]}  Rxe6 {[%clk 0:00:16]} 29. Qd2 {[%clk 0:01:57]}  h6 {[%clk 0:00:10]} 30. Qxa5 {[%clk 0:01:52]}  Re2+ {[%clk 0:00:10]} 31. Kg3 {[%clk 0:01:51]}  Qe6 {[%clk 0:00:09]} 32. Qh5 {[%clk 0:01:22]}  Rxb2 {[%clk 0:00:08]} 33. Kh4 {[%clk 0:01:10]}  Qf6+ {[%clk 0:00:08]} 34. Kg4 {[%clk 0:01:09]}  Qe6+ {[%clk 0:00:08]} 35. Kh4 {[%clk 0:01:08]}  Qf6+ {[%clk 0:00:08]} 36. Kg4 {[%clk 0:01:08]}  Qe6+ {[%clk 0:00:08]} 37. Kh4 {[%clk 0:01:08]} 1/2-1/2


[Site "https://www.chess.com"]

[Event "Titled Tuesday Blitz June 8 2021"]
[White "Woodward, Andy"]
[Black "Nakamura, Hikaru"]
[WhiteFideId "30953499"]
[BlackFideId "2016192"]
[WhiteElo "2716"]
[BlackElo "2900"]
[Result "0-1"]
[Round "03"]
[TimeControl "180+1"]
[Date "2021.06.08"]
[WhiteClock "0:00:24"]
[BlackClock "0:00:46"]

1. d4 {[%clk 0:03:00]}  g6 {[%clk 0:02:56]} 2. c4 {[%clk 0:02:56]}  Bg7 {[%clk 0:02:56]} 3. Nc3 {[%clk 0:02:54]}  c5 {[%clk 0:02:56]} 4. Nf3 {[%clk 0:02:50]}  Nc6 {[%clk 0:02:52]} 5. d5 {[%clk 0:02:48]}  Na5 {[%clk 0:02:52]} 6. Nd2 {[%clk 0:02:46]}  d6 {[%clk 0:02:39]} 7. e4 {[%clk 0:02:37]}  Nf6 {[%clk 0:02:38]} 8. g3 {[%clk 0:02:33]}  O-O {[%clk 0:02:35]} 9. Bg2 {[%clk 0:02:33]}  a6 {[%clk 0:02:36]} 10. a4 {[%clk 0:02:32]}  Rb8 {[%clk 0:02:30]} 11. O-O {[%clk 0:02:32]}  Bd7 {[%clk 0:02:31]} 12. Qc2 {[%clk 0:02:18]}  Ne8 {[%clk 0:02:27]} 13. b3 {[%clk 0:02:17]}  b5 {[%clk 0:02:27]} 14. axb5 {[%clk 0:02:16]}  axb5 {[%clk 0:02:27]} 15. Bb2 {[%clk 0:02:12]}  bxc4 {[%clk 0:02:26]} 16. bxc4 {[%clk 0:02:09]}  Nf6 {[%clk 0:02:24]} 17. Rab1 {[%clk 0:02:01]}  Qc7 {[%clk 0:02:19]} 18. Ba1 {[%clk 0:02:00]}  Rb4 {[%clk 0:02:19]} 19. Na2 {[%clk 0:01:39]}  Rxb1 {[%clk 0:02:11]} 20. Rxb1 {[%clk 0:01:38]}  Ra8 {[%clk 0:02:11]} 21. Nc3 {[%clk 0:01:35]}  Nb7 {[%clk 0:02:07]} 22. e5 {[%clk 0:01:20]}  Bf5 {[%clk 0:01:58]} 23. Qc1 {[%clk 0:01:19]}  Bxb1 {[%clk 0:01:32]} 24. exf6 {[%clk 0:01:11]}  Bxf6 {[%clk 0:01:31]} 25. Qxb1 {[%clk 0:01:12]}  Qa5 {[%clk 0:01:30]} 26. Qxb7 {[%clk 0:01:00]}  Qxa1+ {[%clk 0:01:28]} 27. Ncb1 {[%clk 0:00:55]}  Ra2 {[%clk 0:01:27]} 28. Bf1 {[%clk 0:00:54]}  Rb2 {[%clk 0:01:24]} 29. Qc8+ {[%clk 0:00:51]}  Kg7 {[%clk 0:01:24]} 30. h4 {[%clk 0:00:43]}  h5 {[%clk 0:01:19]} 31. Qh3 {[%clk 0:00:35]}  Rc2 {[%clk 0:01:06]} 32. Qg2 {[%clk 0:00:28]}  Qb2 {[%clk 0:00:58]} 33. Qe4 {[%clk 0:00:26]}  Rc1 {[%clk 0:00:42]} 34. Kg2 {[%clk 0:00:24]}  Rd1 {[%clk 0:00:42]} 35. Qe2 {[%clk 0:00:21]}  Qc1 {[%clk 0:00:39]} 36. Qd3 {[%clk 0:00:06]}  Qb2 {[%clk 0:00:35]} 37. Qe2 {[%clk 0:00:05]}  Rc1 {[%clk 0:00:35]} 38. Qd3 {[%clk 0:00:04]}  Be5 {[%clk 0:00:33]} 39. Kg1 {[%clk 0:00:04]}  Bd4 {[%clk 0:00:34]} 40. Kg2 {[%clk 0:00:04]}  Re1 {[%clk 0:00:29]} 41. Be2 {[%clk 0:00:04]}  Qc1 {[%clk 0:00:27]} 42. Nf1 {[%clk 0:00:04]}  Qxb1 {[%clk 0:00:27]} 43. Qf3 {[%clk 0:00:04]}  Qf5 {[%clk 0:00:20]} 44. Qxf5 {[%clk 0:00:03]}  gxf5 {[%clk 0:00:21]} 45. Bd3 {[%clk 0:00:03]}  Kf6 {[%clk 0:00:20]} 46. Nd2 {[%clk 0:00:04]}  Rd1 {[%clk 0:00:20]} 47. Ne4+ {[%clk 0:00:03]}  fxe4 {[%clk 0:00:20]} 48. Be2 {[%clk 0:00:04]}  Rd2 {[%clk 0:00:21]} 49. Bxh5 {[%clk 0:00:04]}  Rxf2+ {[%clk 0:00:21]} 50. Kh3 {[%clk 0:00:04]}  e3 {[%clk 0:00:22]} 51. g4 {[%clk 0:00:04]}  e2 {[%clk 0:00:23]} 52. g5+ {[%clk 0:00:04]}  Kg7 {[%clk 0:00:23]} 53. Bxe2 {[%clk 0:00:04]}  Rxe2 {[%clk 0:00:24]} 54. Kg4 {[%clk 0:00:05]}  Re4+ {[%clk 0:00:24]} 55. Kh5 {[%clk 0:00:05]}  Rxh4+ {[%clk 0:00:25]} 56. Kxh4 {[%clk 0:00:05]}  Kg6 {[%clk 0:00:26]} 57. Kg4 {[%clk 0:00:05]}  Be3 {[%clk 0:00:27]} 58. Kf3 {[%clk 0:00:06]}  Bxg5 {[%clk 0:00:27]} 59. Ke4 {[%clk 0:00:07]}  f5+ {[%clk 0:00:28]} 60. Kd3 {[%clk 0:00:07]}  Kf6 {[%clk 0:00:29]} 61. Kc2 {[%clk 0:00:08]}  Ke5 {[%clk 0:00:30]} 62. Kb3 {[%clk 0:00:09]}  Kd4 {[%clk 0:00:30]} 63. Ka4 {[%clk 0:00:10]}  Kxc4 {[%clk 0:00:31]} 64. Ka5 {[%clk 0:00:10]}  Kxd5 {[%clk 0:00:32]} 65. Kb6 {[%clk 0:00:11]}  e5 {[%clk 0:00:33]} 66. Kc7 {[%clk 0:00:12]}  e4 {[%clk 0:00:33]} 67. Kd7 {[%clk 0:00:12]}  f4 {[%clk 0:00:34]} 68. Ke8 {[%clk 0:00:12]}  f3 {[%clk 0:00:35]} 69. Kf7 {[%clk 0:00:12]}  Bd2 {[%clk 0:00:36]} 70. Ke8 {[%clk 0:00:13]}  e3 {[%clk 0:00:36]} 71. Kd7 {[%clk 0:00:14]}  f2 {[%clk 0:00:37]} 72. Kc8 {[%clk 0:00:14]}  c4 {[%clk 0:00:38]} 73. Kd7 {[%clk 0:00:15]}  c3 {[%clk 0:00:39]} 74. Ke8 {[%clk 0:00:16]}  Kc5 {[%clk 0:00:39]} 75. Kd7 {[%clk 0:00:17]}  d5 {[%clk 0:00:40]} 76. Kd8 {[%clk 0:00:18]}  d4 {[%clk 0:00:41]} 77. Kd7 {[%clk 0:00:19]}  d3 {[%clk 0:00:42]} 78. Kd8 {[%clk 0:00:20]}  c2 {[%clk 0:00:43]} 79. Kd7 {[%clk 0:00:20]}  e2 {[%clk 0:00:44]} 80. Kd8 {[%clk 0:00:21]}  Kd4 {[%clk 0:00:44]} 81. Kd7 {[%clk 0:00:22]}  f1=N {[%clk 0:00:43]} 82. Ke6 {[%clk 0:00:23]}  e1=N {[%clk 0:00:44]} 83. Kd6 {[%clk 0:00:24]}  c1=N {[%clk 0:00:44]} 84. Kc6 {[%clk 0:00:25]}  Be3 {[%clk 0:00:44]} 85. Kd6 {[%clk 0:00:26]}  d2 {[%clk 0:00:45]} 86. Ke6 {[%clk 0:00:26]}  d1=N {[%clk 0:00:44]} 87. Kd6 {[%clk 0:00:27]}  Ncd3 {[%clk 0:00:44]} 88. Kc6 {[%clk 0:00:28]}  Nc3 {[%clk 0:00:44]} 89. Kb6 {[%clk 0:00:29]}  Nc2 {[%clk 0:00:44]} 90. Ka5 {[%clk 0:00:26]}  Ng3 {[%clk 0:00:45]} 91. Ka6 {[%clk 0:00:25]}  Nge4 {[%clk 0:00:46]} 92. Kb6 {[%clk 0:00:25]}  Bf4 {[%clk 0:00:46]} 93. Ka6 {[%clk 0:00:24]}  Bc7 {[%clk 0:00:46]} 94. Kb7 {[%clk 0:00:25]}  Ncb4 {[%clk 0:00:46]} 95. Kc8 {[%clk 0:00:24]}  Ne5 {[%clk 0:00:46]} 0-1


[Site "https://www.chess.com"]

[Event "Titled Tuesday Blitz June 8 2021"]
[White "Bacrot, Etienne"]
[Black "Kovalev, Vladislav"]
[WhiteFideId "605506"]
[BlackFideId "13504398"]
[WhiteElo "2673"]
[BlackElo "2573"]
[Result "1/2-1/2"]
[Round "04"]
[TimeControl "180+1"]
[Date "2021.06.08"]
[WhiteClock "0:00:12"]
[BlackClock "0:00:09"]

1. e4 {[%clk 0:03:00]}  e5 {[%clk 0:02:59]} 2. Nf3 {[%clk 0:03:00]}  Nc6 {[%clk 0:03:00]} 3. Bb5 {[%clk 0:03:00]}  a6 {[%clk 0:03:01]} 4. Ba4 {[%clk 0:03:00]}  Nf6 {[%clk 0:03:01]} 5. d3 {[%clk 0:03:00]}  b5 {[%clk 0:03:01]} 6. Bb3 {[%clk 0:03:00]}  Bc5 {[%clk 0:02:58]} 7. a4 {[%clk 0:02:58]}  b4 {[%clk 0:02:57]} 8. Nbd2 {[%clk 0:02:54]}  O-O {[%clk 0:02:56]} 9. Nc4 {[%clk 0:02:52]}  Re8 {[%clk 0:02:50]} 10. O-O {[%clk 0:02:44]}  h6 {[%clk 0:02:50]} 11. c3 {[%clk 0:02:25]}  d5 {[%clk 0:02:38]} 12. exd5 {[%clk 0:02:00]}  Nxd5 {[%clk 0:02:38]} 13. Ncxe5 {[%clk 0:01:53]}  Nxe5 {[%clk 0:02:36]} 14. Nxe5 {[%clk 0:01:52]}  bxc3 {[%clk 0:02:01]} 15. Nxf7 {[%clk 0:01:43]}  Qd7 {[%clk 0:01:55]} 16. d4 {[%clk 0:01:05]}  Qxf7 {[%clk 0:01:37]} 17. dxc5 {[%clk 0:01:05]}  Be6 {[%clk 0:01:38]} 18. bxc3 {[%clk 0:00:37]}  Nxc3 {[%clk 0:01:38]} 19. Bxe6 {[%clk 0:00:37]}  Rxe6 {[%clk 0:01:37]} 20. Qd3 {[%clk 0:00:33]}  Ne2+ {[%clk 0:01:23]} 21. Kh1 {[%clk 0:00:33]}  Nxc1 {[%clk 0:01:15]} 22. Raxc1 {[%clk 0:00:34]}  Rae8 {[%clk 0:01:16]} 23. h3 {[%clk 0:00:30]}  Kh8 {[%clk 0:00:59]} 24. c6 {[%clk 0:00:30]}  Rg6 {[%clk 0:00:40]} 25. Qxa6 {[%clk 0:00:25]}  Qd5 {[%clk 0:00:41]} 26. f3 {[%clk 0:00:21]}  Qd2 {[%clk 0:00:41]} 27. Rg1 {[%clk 0:00:17]}  Rxg2 {[%clk 0:00:21]} 28. Rxg2 {[%clk 0:00:18]}  Qxc1+ {[%clk 0:00:22]} 29. Rg1 {[%clk 0:00:18]}  Qc3 {[%clk 0:00:14]} 30. Qf1 {[%clk 0:00:15]}  Qxc6 {[%clk 0:00:14]} 31. Qg2 {[%clk 0:00:14]}  Re7 {[%clk 0:00:14]} 32. a5 {[%clk 0:00:13]}  Rf7 {[%clk 0:00:15]} 33. Ra1 {[%clk 0:00:11]}  Qxf3 {[%clk 0:00:08]} 34. Qxf3 {[%clk 0:00:11]}  Rxf3 {[%clk 0:00:09]} 35. Kg2 {[%clk 0:00:11]}  Rf8 {[%clk 0:00:09]} 36. a6 {[%clk 0:00:11]}  Ra8 {[%clk 0:00:10]} 37. a7 {[%clk 0:00:12]}  Kh7 {[%clk 0:00:10]} 38. Kf3 {[%clk 0:00:12]}  Kg6 {[%clk 0:00:11]} 39. Ke4 {[%clk 0:00:13]}  Kh5 {[%clk 0:00:12]} 40. Kd5 {[%clk 0:00:13]}  Kh4 {[%clk 0:00:12]} 41. Kc6 {[%clk 0:00:14]}  Kxh3 {[%clk 0:00:13]} 42. Kb7 {[%clk 0:00:15]}  Rxa7+ {[%clk 0:00:13]} 43. Rxa7 {[%clk 0:00:15]}  g5 {[%clk 0:00:14]} 44. Kc6 {[%clk 0:00:15]}  g4 {[%clk 0:00:14]} 45. Ra5 {[%clk 0:00:12]}  g3 {[%clk 0:00:06]} 46. Rh5+ {[%clk 0:00:11]}  Kg4 {[%clk 0:00:06]} 47. Rxh6 {[%clk 0:00:12]}  g2 {[%clk 0:00:07]} 48. Rh8 {[%clk 0:00:11]}  Kf3 {[%clk 0:00:08]} 49. Rg8 {[%clk 0:00:11]}  Kf2 {[%clk 0:00:08]} 50. Rxg2+ {[%clk 0:00:11]}  Kxg2 {[%clk 0:00:09]} 51. Kxc7 {[%clk 0:00:12]} 1/2-1/2


[Site "https://www.chess.com"]

[Event "Titled Tuesday Blitz June 8 2021"]
[White "Bortnyk, Olexandr"]
[Black "Tristan, Leonardo"]
[WhiteFideId "14120828"]
[BlackFideId "113816"]
[WhiteElo "2723"]
[BlackElo "2404"]
[Result "1-0"]
[Round "04"]
[TimeControl "180+1"]
[Date "2021.06.08"]
[WhiteClock "0:01:18"]
[BlackClock "0:00:04"]

1. e4 {[%clk 0:03:00]}  Nf6 {[%clk 0:02:59]} 2. e5 {[%clk 0:02:54]}  Nd5 {[%clk 0:03:00]} 3. d4 {[%clk 0:02:54]}  d6 {[%clk 0:03:00]} 4. Nf3 {[%clk 0:02:55]}  dxe5 {[%clk 0:03:00]} 5. c4 {[%clk 0:02:56]}  Nb6 {[%clk 0:02:30]} 6. Nxe5 {[%clk 0:02:56]}  N8d7 {[%clk 0:02:30]} 7. Nxf7 {[%clk 0:02:56]}  Kxf7 {[%clk 0:02:26]} 8. c5 {[%clk 0:02:57]}  Nd5 {[%clk 0:02:24]} 9. Qh5+ {[%clk 0:02:56]}  Ke6 {[%clk 0:02:22]} 10. g3 {[%clk 0:02:57]}  g6 {[%clk 0:02:03]} 11. Bh3+ {[%clk 0:02:56]}  Kf7 {[%clk 0:02:04]} 12. Qxd5+ {[%clk 0:02:56]}  Ke8 {[%clk 0:02:04]} 13. Be6 {[%clk 0:02:52]}  Bg7 {[%clk 0:02:02]} 14. Bg8 {[%clk 0:02:31]}  e6 {[%clk 0:01:38]} 15. Qxe6+ {[%clk 0:02:27]}  Qe7 {[%clk 0:01:38]} 16. Be3 {[%clk 0:01:49]}  Nxc5 {[%clk 0:01:32]} 17. Bf7+ {[%clk 0:01:41]}  Kf8 {[%clk 0:01:30]} 18. Qxe7+ {[%clk 0:01:41]}  Kxe7 {[%clk 0:01:30]} 19. Bc4 {[%clk 0:01:42]}  Ne6 {[%clk 0:01:23]} 20. Nc3 {[%clk 0:01:36]}  Nxd4 {[%clk 0:00:47]} 21. O-O-O {[%clk 0:01:22]}  c5 {[%clk 0:00:46]} 22. Rhe1 {[%clk 0:01:23]}  Kf8 {[%clk 0:00:32]} 23. Bg5 {[%clk 0:01:23]}  Bg4 {[%clk 0:00:03]} 24. Be7+ {[%clk 0:01:21]}  Ke8 {[%clk 0:00:03]} 25. Bxc5+ {[%clk 0:01:22]}  Kd7 {[%clk 0:00:03]} 26. Bxd4 {[%clk 0:01:21]}  Bxd1 {[%clk 0:00:03]} 27. Bxg7 {[%clk 0:01:22]}  Rhc8 {[%clk 0:00:03]} 28. Rxd1+ {[%clk 0:01:21]}  Ke7 {[%clk 0:00:04]} 29. Re1+ {[%clk 0:01:18]} 1-0


[Site "https://www.chess.com"]

[Event "Titled Tuesday Blitz June 8 2021"]
[White "Guo, Arthur"]
[Black "Vyatkin, Dmitry"]
[WhiteFideId "30903114"]
[BlackFideId "4171900"]
[WhiteElo "2822"]
[BlackElo "2279"]
[Result "1-0"]
[Round "04"]
[TimeControl "180+1"]
[Date "2021.06.08"]
[WhiteClock "0:00:28"]
[BlackClock "0:00:18"]

1. e4 {[%clk 0:03:00]}  e6 {[%clk 0:02:59]} 2. d4 {[%clk 0:03:00]}  d5 {[%clk 0:02:59]} 3. Nd2 {[%clk 0:03:00]}  c5 {[%clk 0:02:58]} 4. exd5 {[%clk 0:02:59]}  Qxd5 {[%clk 0:02:58]} 5. Ngf3 {[%clk 0:03:00]}  cxd4 {[%clk 0:02:58]} 6. Bc4 {[%clk 0:02:59]}  Qd6 {[%clk 0:02:58]} 7. O-O {[%clk 0:02:59]}  Nf6 {[%clk 0:02:58]} 8. Nb3 {[%clk 0:03:00]}  Nc6 {[%clk 0:02:57]} 9. Nbxd4 {[%clk 0:03:00]}  Nxd4 {[%clk 0:02:58]} 10. Nxd4 {[%clk 0:03:01]}  a6 {[%clk 0:02:56]} 11. Re1 {[%clk 0:03:01]}  Bd7 {[%clk 0:02:54]} 12. c3 {[%clk 0:02:50]}  Qc7 {[%clk 0:02:49]} 13. Qe2 {[%clk 0:02:51]}  Bd6 {[%clk 0:02:47]} 14. Nf5 {[%clk 0:02:29]}  Bxh2+ {[%clk 0:02:46]} 15. Kh1 {[%clk 0:02:28]}  O-O {[%clk 0:02:46]} 16. Nxg7 {[%clk 0:02:01]}  Kxg7 {[%clk 0:02:46]} 17. Qe3 {[%clk 0:02:01]}  Ng8 {[%clk 0:02:44]} 18. Qg5+ {[%clk 0:01:51]}  Kh8 {[%clk 0:02:44]} 19. Bd3 {[%clk 0:01:45]}  Bd6 {[%clk 0:02:38]} 20. Bxh7 {[%clk 0:01:36]}  Be7 {[%clk 0:01:43]} 21. Qe3 {[%clk 0:01:07]}  Qc5 {[%clk 0:01:02]} 22. Qh3 {[%clk 0:01:05]}  Bg5 {[%clk 0:00:38]} 23. Bf5+ {[%clk 0:00:51]}  Kg7 {[%clk 0:00:32]} 24. Qh7+ {[%clk 0:00:32]}  Kf6 {[%clk 0:00:32]} 25. Bxg5+ {[%clk 0:00:29]}  Kxg5 {[%clk 0:00:32]} 26. f4+ {[%clk 0:00:30]}  Kf6 {[%clk 0:00:27]} 27. Qh4+ {[%clk 0:00:28]}  Kxf5 {[%clk 0:00:18]} 28. Qg5# {[%clk 0:00:28]} 1-0


[Site "https://www.chess.com"]

[Event "Titled Tuesday Blitz June 8 2021"]
[White "Ivic, Velimir"]
[Black "Chasin, Nico"]
[WhiteFideId "950122"]
[BlackFideId "30908477"]
[WhiteElo "2509"]
[BlackElo "2135"]
[Result "0-1"]
[Round "04"]
[TimeControl "180+1"]
[Date "2021.06.08"]
[WhiteClock "0:00:02"]
[BlackClock "0:00:35"]

1. e4 {[%clk 0:03:00]}  c5 {[%clk 0:02:57]} 2. Nf3 {[%clk 0:03:00]}  e6 {[%clk 0:02:56]} 3. d4 {[%clk 0:02:56]}  cxd4 {[%clk 0:02:56]} 4. Nxd4 {[%clk 0:02:57]}  Nc6 {[%clk 0:02:57]} 5. Nc3 {[%clk 0:02:57]}  Qc7 {[%clk 0:02:57]} 6. Be3 {[%clk 0:02:57]}  a6 {[%clk 0:02:57]} 7. a3 {[%clk 0:02:52]}  Nf6 {[%clk 0:02:55]} 8. f4 {[%clk 0:02:52]}  Nxd4 {[%clk 0:02:54]} 9. Bxd4 {[%clk 0:02:53]}  Qxf4 {[%clk 0:02:54]} 10. g3 {[%clk 0:02:52]}  Qg5 {[%clk 0:02:52]} 11. e5 {[%clk 0:02:49]}  Nd5 {[%clk 0:02:25]} 12. Nxd5 {[%clk 0:02:40]}  exd5 {[%clk 0:02:26]} 13. Bg2 {[%clk 0:02:40]}  d6 {[%clk 0:02:22]} 14. Qf3 {[%clk 0:01:23]}  Be6 {[%clk 0:02:18]} 15. h4 {[%clk 0:00:57]}  Qg6 {[%clk 0:02:13]} 16. O-O-O {[%clk 0:00:48]}  Rc8 {[%clk 0:02:02]} 17. c3 {[%clk 0:00:45]}  dxe5 {[%clk 0:01:53]} 18. Bxe5 {[%clk 0:00:45]}  Bc5 {[%clk 0:01:53]} 19. h5 {[%clk 0:00:41]}  Qg5+ {[%clk 0:01:49]} 20. Bf4 {[%clk 0:00:42]}  Qf6 {[%clk 0:01:47]} 21. Kb1 {[%clk 0:00:31]}  Bxa3 {[%clk 0:01:25]} 22. h6 {[%clk 0:00:22]}  g5 {[%clk 0:01:19]} 23. Be3 {[%clk 0:00:19]}  Qg6+ {[%clk 0:01:02]} 24. Ka1 {[%clk 0:00:17]}  Qc2 {[%clk 0:00:55]} 25. Bc1 {[%clk 0:00:12]}  Bxb2+ {[%clk 0:00:41]} 26. Bxb2 {[%clk 0:00:12]}  Rc4 {[%clk 0:00:41]} 27. Rd4 {[%clk 0:00:10]}  Rc5 {[%clk 0:00:36]} 28. Ba3 {[%clk 0:00:02]}  Rxc3 {[%clk 0:00:35]} 0-1


[Site "https://www.chess.com"]

[Event "Titled Tuesday Blitz June 8 2021"]
[White "Kollars, Dmitrij"]
[Black "Nguyen, Anh Khoi"]
[WhiteFideId "12909572"]
[BlackFideId "12404675"]
[WhiteElo "2576"]
[BlackElo "2296"]
[Result "1-0"]
[Round "04"]
[TimeControl "180+1"]
[Date "2021.06.08"]
[WhiteClock "0:00:20"]
[BlackClock "0:00:01"]

1. e4 {[%clk 0:03:00]}  c5 {[%clk 0:02:59]} 2. Nf3 {[%clk 0:03:00]}  d6 {[%clk 0:02:59]} 3. Bb5+ {[%clk 0:03:00]}  Bd7 {[%clk 0:02:59]} 4. Bxd7+ {[%clk 0:03:00]}  Nxd7 {[%clk 0:02:59]} 5. O-O {[%clk 0:02:59]}  Ngf6 {[%clk 0:02:59]} 6. Qe2 {[%clk 0:03:00]}  Rc8 {[%clk 0:02:50]} 7. c3 {[%clk 0:02:58]}  e6 {[%clk 0:02:41]} 8. d4 {[%clk 0:02:56]}  cxd4 {[%clk 0:02:23]} 9. cxd4 {[%clk 0:02:57]}  d5 {[%clk 0:02:23]} 10. e5 {[%clk 0:02:57]}  Ne4 {[%clk 0:02:23]} 11. Be3 {[%clk 0:02:58]}  Be7 {[%clk 0:02:23]} 12. Ne1 {[%clk 0:02:57]}  f5 {[%clk 0:02:11]} 13. Nd3 {[%clk 0:02:51]}  O-O {[%clk 0:02:03]} 14. f3 {[%clk 0:02:51]}  Ng5 {[%clk 0:02:03]} 15. Nc3 {[%clk 0:02:51]}  Qb6 {[%clk 0:01:50]} 16. a4 {[%clk 0:02:48]}  Rc6 {[%clk 0:01:32]} 17. Nf4 {[%clk 0:02:33]}  Rfc8 {[%clk 0:01:08]} 18. Qb5 {[%clk 0:02:27]}  a6 {[%clk 0:01:02]} 19. Qe2 {[%clk 0:02:10]}  Nf8 {[%clk 0:00:53]} 20. a5 {[%clk 0:02:05]}  Qd8 {[%clk 0:00:50]} 21. Rfc1 {[%clk 0:01:56]}  Bb4 {[%clk 0:00:46]} 22. Qd1 {[%clk 0:01:30]}  Bxa5 {[%clk 0:00:40]} 23. Nfxd5 {[%clk 0:01:24]}  Nh3+ {[%clk 0:00:22]} 24. gxh3 {[%clk 0:01:21]}  exd5 {[%clk 0:00:22]} 25. Qb3 {[%clk 0:01:14]}  Bxc3 {[%clk 0:00:21]} 26. Rxc3 {[%clk 0:01:15]}  Rg6+ {[%clk 0:00:15]} 27. Kh1 {[%clk 0:01:10]}  Rxc3 {[%clk 0:00:15]} 28. bxc3 {[%clk 0:01:10]}  b5 {[%clk 0:00:15]} 29. Qc2 {[%clk 0:00:55]}  Qd7 {[%clk 0:00:13]} 30. h4 {[%clk 0:00:51]}  Rc6 {[%clk 0:00:10]} 31. h5 {[%clk 0:00:50]}  b4 {[%clk 0:00:09]} 32. Bd2 {[%clk 0:00:31]}  bxc3 {[%clk 0:00:09]} 33. Bxc3 {[%clk 0:00:32]}  Ne6 {[%clk 0:00:09]} 34. Qb3 {[%clk 0:00:28]}  Nf4 {[%clk 0:00:05]} 35. Bd2 {[%clk 0:00:23]}  Nxh5 {[%clk 0:00:03]} 36. Ra5 {[%clk 0:00:23]}  Rg6 {[%clk 0:00:01]} 37. Rxd5 {[%clk 0:00:20]} 1-0


[Site "https://www.chess.com"]